fUSD/lending_fUSD_20260309
["ID","MTS","AMOUNT","RATE_DAILY","PERIOD"]
[408035931,1773063041011,-168.5,0.00019103,2]
[408035932,1773063041020,-1001.47423274,0.00019121,2]
[408035933,1773063041030,-1000.0,0.00019121,2]
[408035934,1773063041039,-1000.0,0.00019121,2]
[408035935,1773063041048,-150.0,0.00019136,2]
[408035936,1773063041059,-474.0,0.00019136,2]
[408035937,1773063041069,-660.0,0.00019136,2]
[408035938,1773063041079,-1249.0,0.00019136,2]
[408035939,1773063041089,-500.0,0.00019136,2]
[408035940,1773063041098,-500.0,0.00019136,2]
[408035941,1773063041107,-500.0,0.00019136,2]
[408035942,1773063041118,-1793.0,0.00019136,2]
[408035943,1773063041128,-946.0,0.00019136,2]
[408035944,1773063041138,-501.70358089,0.00019136,2]
[408035945,1773063041147,-150.0,0.00019136,2]
[408035946,1773063041157,-805.0,0.00019136,2]
[408035947,1773063041166,-600.0,0.00019136,2]
[408035948,1773063041175,-500.0,0.00019136,2]
[408035949,1773063041185,-958.0,0.00019136,2]
[408035950,1773063041194,-500.0,0.00019136,2]
[408035951,1773063041203,-2395.0,0.00019136,2]
[408035952,1773063041213,-500.0,0.00019136,2]
[408035953,1773063041223,-500.0,0.00019136,2]
[408035954,1773063041232,-500.0,0.00019136,2]
[408035955,1773063041242,-500.0,0.00019136,2]
[408035956,1773063041251,-1010.0,0.00019136,2]
[408035957,1773063041260,-508.0,0.00019136,2]
[408035958,1773063041270,-500.0,0.00019136,2]
[408035959,1773063041280,-326.91463833,0.00019145,2]
[408035960,1773063041289,-266.70549243,0.00019151,2]
[408035961,1773063041299,-323.77109867,0.00019173,2]
[408035962,1773063041308,-500.0,0.00019173,2]
[408035963,1773063041318,-501.46144244,0.00019173,2]
[408035964,1773063041327,-163.7437981,0.00019173,2]
[408035965,1773063041338,-500.0,0.00019173,2]
[408035966,1773063041348,-501.37407519,0.00019173,2]
[408035967,1773063041358,-500.0,0.00019173,2]
[408035968,1773063041368,-500.0,0.00019173,2]
[408035969,1773063041377,-124729.8006554,0.00019177,2]
[408035970,1773063041387,-1000.0,0.00019178,2]
[408035971,1773063041396,-2368.05,0.00019182,2]
[408035972,1773063041405,-150.0,0.00019187,2]
[408035973,1773063041414,-474.0,0.00019191,2]
[408035974,1773063041424,-660.0,0.00019191,2]
[408035975,1773063041434,-1249.0,0.00019191,2]
[408035976,1773063041448,-500.0,0.00019191,2]
[408035977,1773063041457,-500.0,0.00019191,2]
[408035978,1773063041467,-500.0,0.00019191,2]
[408035979,1773063041476,-1793.0,0.00019191,2]
[408035980,1773063041486,-946.0,0.00019191,2]
[408035981,1773063041495,-805.0,0.00019191,2]
[408035982,1773063041505,-500.0,0.00019191,2]
[408035983,1773063041516,-958.0,0.00019191,2]
[408035984,1773063041529,-500.0,0.00019191,2]
[408035985,1773063041549,-2395.0,0.00019191,2]
[408035986,1773063041570,-500.0,0.00019191,2]
[408035987,1773063041587,-500.0,0.00019191,2]
[408035988,1773063041599,-500.0,0.00019191,2]
[408035989,1773063041608,-500.0,0.00019191,2]
[408035990,1773063041617,-1010.0,0.00019191,2]
[408035991,1773063041627,-508.0,0.00019191,2]
[408035992,1773063041636,-500.0,0.00019191,2]
[408035993,1773063041645,-3512.88474457,0.00019192,2]
[408035994,1773063041655,-258.54772314,0.00019199,2]
[408035995,1773063041666,-2000.0,0.000192,2]
[408035996,1773063041686,-2700.0,0.000192,7]
[408035997,1773063041707,-168.5,0.00019203,2]
[408035998,1773063041725,-1000.0,0.00019215,2]
[408035999,1773063041736,-266.70549243,0.00019233,2]
[408036000,1773063041747,-474.0,0.00019246,2]
[408036001,1773063041766,-1249.0,0.00019246,2]
[408036002,1773063041776,-660.0,0.00019246,2]
[408036003,1773063041787,-341.44383599,0.00019246,2]
[408036004,1773063042834,-158.55616401,0.00019246,2]
[408036005,1773063042844,-154.61846768,0.00019246,2]
[408036006,1773063042852,-500.0,0.00019246,2]
[408036007,1773063042862,-1793.0,0.00019246,2]
[408036008,1773063042870,-946.0,0.00019246,2]
[408036009,1773063042880,-805.0,0.00019246,2]
[408036010,1773063042889,-500.0,0.00019246,2]
[408036011,1773063042899,-958.0,0.00019246,2]
[408036012,1773063042908,-500.0,0.00019246,2]
[408036013,1773063042917,-2395.0,0.00019246,2]
[408036014,1773063042927,-500.0,0.00019246,2]
[408036015,1773063042936,-405.47740234,0.00019246,2]
[408036016,1773063042945,-500.0,0.00019246,2]
[408036017,1773063042955,-500.0,0.00019246,2]
[408036018,1773063042967,-1010.0,0.00019246,2]
[408036019,1773063042977,-508.0,0.00019246,2]
[408036020,1773063042988,-150.0,0.00019246,2]
[408036021,1773063042998,-4076.4661188,0.00019258,2]
[408036022,1773063043007,-609.53,0.00019258,2]
[408036023,1773063043017,-169.51,0.00019271,2]
[408036024,1773063043026,-682.0,0.00019288,2]
[408036025,1773063043035,-3600.0,0.000193,7]
[408036026,1773063043044,-474.0,0.000193,2]
[408036027,1773063043053,-1249.0,0.000193,2]
[408036028,1773063043063,-660.0,0.000193,2]
[408036029,1773063043072,-500.0,0.000193,2]
[408036030,1773063043083,-519.05367316,0.000193,2]
[408036031,1773063043092,-1488.62616675,0.000193,2]
[408036032,1773063043126,-304.37383325,0.000193,2]
[408036033,1773063043135,-946.0,0.000193,2]
[408036034,1773063043145,-805.0,0.000193,2]
[408036035,1773063043155,-500.0,0.000193,2]
[408036036,1773063043165,-958.0,0.000193,2]
[408036037,1773063043174,-500.0,0.000193,2]
[408036038,1773063043183,-2395.0,0.000193,2]
[408036039,1773063043192,-500.0,0.000193,2]
[408036040,1773063043202,-500.0,0.000193,2]
[408036041,1773063043212,-500.0,0.000193,2]
[408036042,1773063043221,-1010.0,0.000193,2]
[408036043,1773063043231,-508.0,0.000193,2]
[408036044,1773063043240,-168.5,0.00019303,2]
[408036045,1773063043249,-266.70549243,0.00019315,2]
[408036046,1773063043259,-168.0,0.0001934,2]
[408036047,1773063043268,-610.06,0.0001934,2]
[408036048,1773063043277,-181.08010149,0.0001935,2]
[408036049,1773063043286,-2967.09,0.0001935,2]
[408036050,1773063043296,-376.20371866,0.0001935,2]
[408036051,1773063043308,-2590.88628134,0.0001935,2]
[408036052,1773063043317,-2343.32026666,0.0001935,2]
[408036053,1773063043505,-973.24078462,0.0001935,2]
[408036054,1773063043519,-2178.65894872,0.0001935,2]
[408036055,1773063043529,-947.12,0.0001935,2]
[408036056,1773063043539,-611.46,0.0001935,2]
[408036057,1773063043550,-474.0,0.00019355,2]
[408036058,1773063043560,-1249.0,0.00019355,2]
[408036059,1773063043569,-660.0,0.00019355,2]
[408036060,1773063043579,-500.0,0.00019355,2]
[408036061,1773063043589,-1793.0,0.00019355,2]
[408036062,1773063043598,-946.0,0.00019355,2]
[408036063,1773063043608,-805.0,0.00019355,2]
[408036064,1773063043619,-500.0,0.00019355,2]
[408036065,1773063043630,-958.0,0.00019355,2]
[408036066,1773063043639,-500.0,0.00019355,2]
[408036067,1773063043648,-2395.0,0.00019355,2]
[408036068,1773063043658,-500.0,0.00019355,2]
[408036069,1773063043669,-500.0,0.00019355,2]
[408036071,1773063043678,-500.0,0.00019355,2]
[408036072,1773063043687,-508.0,0.00019355,2]
[408036073,1773063043696,-1010.0,0.00019355,2]
[408036074,1773063043706,-2057.0,0.0001936,2]
[408036075,1773063043715,-3512.88474457,0.00019369,2]
[408036076,1773063043724,-266.70549243,0.0001937,2]
[408036077,1773063043733,-350.0,0.00019374,3]
[408036078,1773063043742,-209.0,0.00019384,2]
[408036079,1773063043753,-350.0,0.00019398,2]
[408036080,1773063043762,-4600.0,0.000194,7]
[408036081,1773063043771,-168.5,0.00019402,2]
[408036082,1773063043781,-474.0,0.0001941,2]
[408036083,1773063043791,-660.0,0.0001941,2]
[408036084,1773063043801,-1249.0,0.0001941,2]
[408036085,1773063043810,-1793.0,0.0001941,2]
[408036086,1773063043819,-946.0,0.0001941,2]
[408036087,1773063043828,-805.0,0.0001941,2]
[408036088,1773063043838,-500.0,0.0001941,2]
[408036089,1773063043847,-958.0,0.0001941,2]
[408036090,1773063043856,-500.0,0.0001941,2]
[408036091,1773063043866,-2395.0,0.0001941,2]
[408036092,1773063043875,-500.0,0.0001941,2]
[408036093,1773063043884,-500.0,0.0001941,2]
[408036094,1773063043894,-500.0,0.0001941,2]
[408036095,1773063043904,-508.0,0.0001941,2]
[408036096,1773063043913,-1010.0,0.0001941,2]
[408036097,1773063043923,-4076.4661188,0.00019418,2]
[408036098,1773063043932,-700.0,0.00019452,7]
[408036099,1773063043942,-600.0,0.00019452,7]
[408036100,1773063043951,-266.70549243,0.00019452,2]
[408036101,1773063043960,-1000.0,0.00019452,2]
[408036102,1773063043970,-682.0,0.00019455,2]
[408036104,1773063043980,-474.0,0.00019465,2]
[408036106,1773063043989,-660.0,0.00019465,2]
[408036108,1773063043998,-1249.0,0.00019465,2]
[408036110,1773063044007,-1793.0,0.00019465,2]
[408036111,1773063044017,-946.0,0.00019465,2]
[408036112,1773063044026,-805.0,0.00019465,2]
[408036113,1773063044034,-958.0,0.00019465,2]
[408036114,1773063044044,-500.0,0.00019465,2]
[408036115,1773063044052,-2395.0,0.00019465,2]
[408036116,1773063044061,-500.0,0.00019465,2]
[408036117,1773063044072,-340.05274297,0.00019465,2]
[408036118,1773063044081,-500.0,0.00019465,2]
[408036119,1773063044092,-508.0,0.00019465,2]
[408036120,1773063044101,-1010.0,0.00019465,2]
[408036121,1773063044110,-637.0,0.00019465,2]
[408036122,1773063044120,-150.0,0.00019465,2]
[408036123,1773063044129,-150.0,0.00019465,2]
[408036124,1773063044139,-189.0,0.00019465,2]
[408036125,1773063044148,-328.79,0.00019498,2]
[408036126,1773063044157,-900.0,0.000195,7]
[408036127,1773063044166,-168.5,0.00019502,2]
[408036128,1773063044175,-474.0,0.0001952,2]
[408036129,1773063044184,-660.0,0.0001952,2]
[408036130,1773063044193,-1249.0,0.0001952,2]
[408036131,1773063044203,-1793.0,0.0001952,2]
[408036132,1773063044212,-946.0,0.0001952,2]
[408036133,1773063044221,-805.0,0.0001952,2]
[408036134,1773063044230,-958.0,0.0001952,2]
[408036135,1773063044239,-450.19393605,0.0001952,2]
[408036136,1773063044249,-2395.0,0.0001952,2]
[408036137,1773063044258,-500.0,0.0001952,2]
[408036138,1773063044268,-500.0,0.0001952,2]
[408036139,1773063044278,-508.0,0.0001952,2]
[408036140,1773063044287,-1010.0,0.0001952,2]
[408036141,1773063044295,-250.0,0.00019534,2]
[408036142,1773063044305,-266.70549243,0.00019534,2]
[408036143,1773063044314,-330.48,0.00019541,2]
[408036144,1773063044323,-345.67576011,0.00019546,2]
[408036145,1773063044332,-3512.88474457,0.00019546,2]
[408036146,1773063044342,-250.0,0.00019551,2]
[408036147,1773063044351,-186.0,0.0001957,30]
[408036148,1773063044360,-172.84,0.0001957,2]
[408036149,1773063044369,-859.3976216,0.00019572,2]
[408036150,1773063044378,-474.0,0.00019574,2]
[408036151,1773063044387,-660.0,0.00019574,2]
[408036152,1773063044396,-1249.0,0.00019574,2]
[408036153,1773063044405,-1793.0,0.00019574,2]
[408036154,1773063044414,-946.0,0.00019574,2]
[408036155,1773063044423,-805.0,0.00019574,2]
[408036156,1773063044432,-958.0,0.00019574,2]
[408036157,1773063044444,-2395.0,0.00019574,2]
[408036158,1773063044453,-500.0,0.00019574,2]
[408036159,1773063044463,-500.0,0.00019574,2]
[408036160,1773063044472,-508.0,0.00019574,2]
[408036161,1773063044481,-1010.0,0.00019574,2]
[408036162,1773063044490,-4076.4661188,0.00019579,2]
[408036163,1773063044499,-172.84,0.00019596,2]
[408036164,1773063044508,-250.0,0.000196,2]
[408036165,1773063044517,-1109.60036923,0.000196,2]
[408036166,1773063044525,-1044.94023708,0.000196,2]
[408036167,1773063044534,-995.73667775,0.000196,2]
[408036168,1773063044544,-1875.164868,0.000196,2]
[408036169,1773063044553,-900.0,0.000196,7]
[408036170,1773063044562,-986.04832151,0.000196,2]
[408036171,1773063044571,-168.5,0.00019601,2]
[408036172,1773063044580,-172.87392778,0.00019601,2]
[408036173,1773063044590,-562.0,0.0001961,2]
[408036174,1773063044599,-150.0,0.0001961,2]
[408036175,1773063044608,-150.0,0.0001961,2]
[408036176,1773063044617,-297.0,0.0001961,2]
[408036177,1773063044626,-250.0,0.0001961,2]
[408036178,1773063044635,-266.70549243,0.00019616,2]
[408036179,1773063044644,-500.0,0.00019617,2]
[408036180,1773063044653,-500.0,0.00019617,2]
[408036181,1773063044662,-500.0,0.00019617,2]
[408036182,1773063044672,-474.0,0.00019629,2]
[408036183,1773063044681,-1249.0,0.00019629,2]
[408036184,1773063044690,-660.0,0.00019629,2]
[408036185,1773063044699,-1793.0,0.00019629,2]
[408036186,1773063044708,-946.0,0.00019629,2]
[408036187,1773063044717,-805.0,0.00019629,2]
[408036188,1773063044726,-958.0,0.00019629,2]
[408036189,1773063044735,-2395.0,0.00019629,2]
[408036190,1773063044744,-500.0,0.00019629,2]
[408036191,1773063044754,-500.0,0.00019629,2]
[408036192,1773063044763,-508.0,0.00019629,2]
[408036193,1773063044772,-1010.0,0.00019629,2]
[408036194,1773063044781,-501.15121057,0.00019668,2]
[408036195,1773063044790,-1500.0,0.00019668,2]
[408036196,1773063044799,-431.0,0.0001967,5]
[408036197,1773063044809,-150.0,0.00019673,2]
[408036198,1773063044818,-150.0,0.00019673,2]
[408036199,1773063044827,-150.0,0.00019673,2]
[408036200,1773063044837,-150.0,0.00019673,2]
[408036201,1773063044846,-150.0,0.00019673,2]
[408036202,1773063044856,-150.0,0.00019673,2]
[408036203,1773063044865,-150.0,0.00019673,2]
[408036204,1773063044874,-150.0,0.00019673,2]
[408036205,1773063044883,-150.0,0.00019673,2]
[408036206,1773063044893,-150.0,0.00019673,2]
[408036207,1773063044902,-150.0,0.00019673,2]
[408036208,1773063044912,-150.0,0.00019673,2]
[408036209,1773063044923,-250.0,0.0001968,2]
[408036210,1773063044932,-474.0,0.00019684,2]
[408036211,1773063044941,-1249.0,0.00019684,2]
[408036212,1773063044952,-660.0,0.00019684,2]
[408036213,1773063044962,-1793.0,0.00019684,2]
[408036214,1773063044972,-946.0,0.00019684,2]
[408036215,1773063044982,-805.0,0.00019684,2]
[408036216,1773063045241,-958.0,0.00019684,2]
[408036217,1773063045251,-2395.0,0.00019684,2]
[408036218,1773063045261,-608.31593509,0.00019684,2]
[408036219,1773063045271,-314.57090824,0.00019684,2]
[408036220,1773063045281,-508.0,0.00019684,2]
[408036221,1773063045298,-1010.0,0.00019684,2]
[408036222,1773063045314,-266.70549243,0.00019699,2]
[408036223,1773063045325,-2946.52206413,0.000197,2]
[408036224,1773063045337,-900.0,0.000197,7]
[408036225,1773063045347,-168.5,0.00019701,2]
[408036226,1773063045357,-250.0,0.00019706,2]
[408036227,1773063045368,-3512.88474457,0.00019723,2]
[408036228,1773063045378,-301.50464711,0.00019724,2]
[408036229,1773063045390,-250.0,0.00019725,2]
[408036230,1773063045400,-269.11907877,0.00019726,2]
[408036231,1773063045411,-1000.0,0.00019726,2]
[408036232,1773063045422,-150.0,0.00019728,2]
[408036233,1773063045433,-150.0,0.00019728,2]
[408036234,1773063045446,-150.0,0.00019728,2]
[408036235,1773063045457,-150.0,0.00019728,2]
[408036236,1773063045467,-485.07925419,0.00019728,2]
[408036237,1773063045477,-209.0,0.00019734,2]
[408036238,1773063045487,-474.0,0.00019739,2]
[408036239,1773063045497,-1249.0,0.00019739,2]
[408036240,1773063045507,-660.0,0.00019739,2]
[408036241,1773063045516,-1793.0,0.00019739,2]
[408036242,1773063045530,-946.0,0.00019739,2]
[408036243,1773063045539,-805.0,0.00019739,2]
[408036244,1773063045549,-958.0,0.00019739,2]
[408036245,1773063045558,-2395.0,0.00019739,2]
[408036246,1773063045568,-508.0,0.00019739,2]
[408036247,1773063045578,-1010.0,0.00019739,2]
[408036248,1773063045588,-4076.4661188,0.00019739,2]
[408036249,1773063045598,-250.0,0.00019748,2]
[408036250,1773063045607,-682.0,0.00019753,2]
[408036251,1773063045618,-301.50464709,0.00019753,2]
[408036252,1773063045627,-266.70549243,0.00019753,2]
[408036253,1773063045639,-184.22758356,0.00019758,2]
[408036254,1773063045649,-569.0,0.00019774,2]
[408036255,1773063045659,-200.0,0.00019774,2]
[408036256,1773063045668,-200.0,0.00019774,2]
[408036257,1773063045678,-200.0,0.00019774,2]
[408036258,1773063045687,-200.0,0.00019774,2]
[408036259,1773063045697,-200.0,0.00019774,2]
[408036260,1773063045707,-200.0,0.00019774,2]
[408036261,1773063045717,-200.0,0.00019774,2]
[408036262,1773063045727,-192.0,0.00019774,2]
[408036263,1773063045738,-331.0,0.00019775,2]
[408036264,1773063045749,-200.0,0.00019783,2]
[408036265,1773063045759,-150.0,0.00019783,2]
[408036266,1773063045769,-200.0,0.00019783,2]
[408036267,1773063045779,-200.0,0.00019783,2]
[408036268,1773063045788,-301.50464709,0.00019783,2]
[408036269,1773063045798,-250.0,0.00019783,2]
[408036270,1773063045808,-168.0,0.00019787,2]
[408036271,1773063045817,-474.0,0.00019794,2]
[408036272,1773063045827,-1249.0,0.00019794,2]
[408036273,1773063045837,-660.0,0.00019794,2]
[408036274,1773063045846,-1793.0,0.00019794,2]
[408036275,1773063045856,-946.0,0.00019794,2]
[408036276,1773063045866,-805.0,0.00019794,2]
[408036277,1773063045875,-958.0,0.00019794,2]
[408036278,1773063045885,-2395.0,0.00019794,2]
[408036279,1773063045895,-508.0,0.00019794,2]
[408036280,1773063045904,-1010.0,0.00019794,2]
[408036281,1773063045913,-2000.0,0.000198,2]
[408036283,1773063045923,-2000.0,0.000198,2]
[408036285,1773063045933,-900.0,0.000198,7]
[408036286,1773063045942,-2000.0,0.000198,2]
[408036287,1773063045952,-168.5,0.00019801,2]
[408036288,1773063045961,-6221.40746089,0.0001981,2]
[408036289,1773063045970,-250.0,0.0001981,2]
[408036290,1773063045980,-301.50464709,0.00019812,2]
[408036291,1773063045990,-4358.295,0.00019824,2]
[408036292,1773063045999,-183.778,0.00019824,2]
[408036293,1773063046008,-432.0,0.00019833,2]
[408036294,1773063046018,-250.0,0.00019833,2]
[408036295,1773063046028,-266.70549243,0.00019836,2]
[408036296,1773063046037,-150.0,0.00019837,2]
[408036297,1773063046047,-200.0,0.0001984,2]
[408036298,1773063046056,-301.50464709,0.00019841,2]
[408036299,1773063046066,-474.0,0.00019848,2]
[408036300,1773063046076,-1249.0,0.00019848,2]
[408036301,1773063046086,-660.0,0.00019848,2]
[408036302,1773063046095,-1793.0,0.00019848,2]
[408036303,1773063046105,-946.0,0.00019848,2]
[408036304,1773063046115,-805.0,0.00019848,2]
[408036305,1773063046124,-958.0,0.00019848,2]
[408036306,1773063046134,-2395.0,0.00019848,2]
[408036307,1773063046143,-508.0,0.00019848,2]
[408036308,1773063046153,-1010.0,0.00019848,2]
[408036309,1773063046163,-163.71,0.0001985,2]
[408036310,1773063046173,-301.50464709,0.00019871,2]
[408036311,1773063046182,-150.0,0.00019873,2]
[408036312,1773063046192,-500.0,0.00019875,2]
[408036313,1773063046201,-250.0,0.00019876,2]
[408036314,1773063046211,-25000.0,0.00019882,3]
[408036315,1773063046220,-151.0,0.00019888,2]
[408036316,1773063046230,-25000.0,0.00019891,3]
[408036317,1773063046239,-176.29568284,0.00019892,2]
[408036318,1773063046248,-187.78006525,0.00019898,2]
[408036319,1773063046258,-25000.0,0.000199,3]
[408036320,1773063046267,-2000.0,0.000199,2]
[408036322,1773063046277,-2000.0,0.000199,2]
[408036323,1773063046286,-25000.0,0.000199,3]
[408036324,1773063046296,-2000.0,0.000199,2]
[408036325,1773063046305,-484.31397246,0.000199,2]
[408036326,1773063046315,-10000.0,0.000199,2]
[408036327,1773063046324,-5800.0,0.000199,2]
[408036329,1773063046333,-301.50464709,0.000199,2]
[408036330,1773063046343,-250.0,0.000199,2]
[408036331,1773063046353,-6629.51072437,0.000199,3]
[408036332,1773063046362,-4076.4661188,0.000199,2]
[408036333,1773063046372,-168.5,0.000199,2]
[408036334,1773063046382,-1224.0,0.000199,7]
[408036335,1773063046392,-3512.88474457,0.000199,2]
[408036336,1773063046402,-4819.04359242,0.000199,2]
[408036337,1773063046411,-8531.31265296,0.000199,2]
[408036338,1773063046421,-2209.0,0.000199,2]
[408036339,1773063046430,-153.44060954,0.00019903,2]
[408036340,1773063046442,-474.0,0.00019903,2]
[408036341,1773063046453,-1249.0,0.00019903,2]
[408036342,1773063046462,-660.0,0.00019903,2]
[408036343,1773063046472,-1793.0,0.00019903,2]
[408036344,1773063046482,-946.0,0.00019903,2]
[408036345,1773063046492,-805.0,0.00019903,2]
[408036346,1773063046501,-958.0,0.00019903,2]
[408036347,1773063046511,-2395.0,0.00019903,2]
[408036348,1773063046523,-1010.0,0.00019903,2]
[408036349,1773063046533,-508.0,0.00019903,2]
[408036350,1773063046543,-250.0,0.00019915,2]
[408036351,1773063046552,-250.0,0.00019947,2]
[408036352,1773063046562,-474.0,0.00019958,2]
[408036353,1773063046571,-1249.0,0.00019958,2]
[408036354,1773063046580,-660.0,0.00019958,2]
[408036355,1773063046591,-1793.0,0.00019958,2]
[408036356,1773063046601,-946.0,0.00019958,2]
[408036357,1773063046611,-805.0,0.00019958,2]
[408036358,1773063046620,-958.0,0.00019958,2]
[408036359,1773063046629,-2395.0,0.00019958,2]
[408036360,1773063046639,-1010.0,0.00019958,2]
[408036361,1773063046649,-508.0,0.00019958,2]
[408036362,1773063046658,-331.0,0.00019958,2]
[408036363,1773063046667,-160.0,0.00019966,2]
[408036364,1773063046677,-500.0,0.00019973,2]
[408036365,1773063046687,-500.0,0.00019973,2]
[408036366,1773063046696,-3664.0,0.00019973,2]
[408036367,1773063046705,-267.0,0.00019975,2]
[408036368,1773063046715,-682.0,0.0001998,2]
[408036369,1773063046725,-245.85733071,0.00019984,2]
[408036370,1773063046734,-250.0,0.00019984,2]
[408036371,1773063046743,-500.0,0.00019987,2]
[408036372,1773063046753,-500.0,0.00019987,2]
[408036373,1773063046762,-500.0,0.00019987,2]
[408036374,1773063046772,-682.0,0.00019988,2]
[408036375,1773063046782,-2395.0,0.00019988,2]
[408036376,1773063046791,-150.0,0.0001999,2]
[408036377,1773063046800,-1279.0,0.0001999,2]
[408036378,1773063046809,-1213.0,0.0001999,2]
[408036379,1773063046819,-922.0,0.0001999,2]
[408036380,1773063046828,-151.0,0.0001999,2]
[408036381,1773063046838,-1042.0,0.0001999,2]
[408036382,1773063046847,-213.597407,0.0001999,2]
[408036383,1773063046856,-213.597407,0.0001999,2]
[408036384,1773063046865,-1342.0,0.0001999,2]
[408036385,1773063046874,-213.597407,0.0001999,2]
[408036386,1773063046884,-213.597407,0.0001999,2]
[408036387,1773063046893,-151.0,0.0001999,2]
[408036388,1773063046902,-151.0,0.0001999,2]
[408036389,1773063046911,-151.0,0.0001999,2]
[408036390,1773063046921,-151.0,0.0001999,2]
[408036391,1773063046931,-2461.0,0.0001999,2]
[408036392,1773063046941,-151.0,0.00019997,2]
[408036393,1773063046950,-151.0,0.00019997,2]
[408036394,1773063046960,-350.0,0.00019999,2]
[408036395,1773063046969,-150.0,0.00019999,2]
[408036396,1773063046978,-504.66308381,0.00019999,2]
[408036397,1773063046988,-160.53387614,0.00019999,2]
[408036398,1773063046997,-300.0,0.0002,2]
[408036399,1773063047006,-658847.0680216,0.0002,2]
[408036400,1773063047022,-342.45,0.0002,2]
[408036401,1773063047055,-2198.09319613,0.0002,2]
[408036402,1773063047066,-15360.28370302,0.0002,2]
[408036403,1773063047081,-475.80353924,0.0002,2]
[408036404,1773063047105,-33271.11644424,0.0002,2]
[408036405,1773063047116,-5282.34283032,0.0002,2]
[408036406,1773063047363,-500.0,0.0002,2]
[408036407,1773063047374,-342444.99999992,0.0002,2]
[408036408,1773063047406,-341.04,0.0002,2]
[408036409,1773063047771,-150.0,0.00018562,2]
[408036410,1773063047780,-160.0,0.00019964,2]
[408036411,1773063047789,-151.0,0.0001999,2]
[408036412,1773063047798,-22739.0,0.0002,2]
[408036413,1773063047809,-559.1427932,0.0002,2]
[408036414,1773063047848,-5788.32139727,0.0002,2]
[408036421,1773063135890,500.0,8e-05,2]
[408036422,1773063137249,862.33165999,8e-05,2]
[408036423,1773063137360,500.0,8e-05,2]
[408036424,1773063137840,500.0,8e-05,2]
[408036425,1773063138303,500.0,8e-05,2]
[408036426,1773063138775,577.57351996,8e-05,2]
[408036427,1773063144118,500.0,8e-05,2]
[408036428,1773063145080,500.0,8e-05,2]
[408036429,1773063145557,500.0,8e-05,2]
[408036430,1773063146029,500.0,8e-05,2]
[408036431,1773063146427,667.50874734,8e-05,2]
[408036432,1773063146505,991.73346161,8e-05,2]
[408036433,1773063148713,500.0,8e-05,2]
[408036434,1773063150465,717.41748792,8e-05,2]
[408036496,1773063306956,168.0,0.00012,2]
[408036498,1773063577181,-170.64325428,0.000139,2]
[408036499,1773063592334,-300.0,0.00013999,2]
[408036500,1773063592363,-300.0,0.00013999,2]
[408036501,1773063601766,1200.0,0.00013999,2]
[408036502,1773063607580,-4794.84929235,0.00014,2]
[408036503,1773063607633,-157.66,0.00014,2]
[408036504,1773063737855,500.0,8.08e-05,2]
[408036505,1773063738035,500.0,8.08e-05,2]
[408036506,1773063738063,515.83881023,8.08e-05,2]
[408036507,1773063741278,500.0,8.08e-05,2]